fUSD/lending_fUSD_20240213
["ID","MTS","AMOUNT","RATE_DAILY","PERIOD"]
[313936476,1707838283269,-650.0,0.00036986,15]
[313936477,1707838283278,-650.0,0.00036986,15]
[313936478,1707838283321,-650.0,0.00036986,15]
[313936479,1707838283331,-650.0,0.00036986,15]
[313936480,1707838283341,-650.0,0.00036986,15]
[313936481,1707838283350,-650.0,0.00036986,15]
[313936482,1707838283363,-650.0,0.00036986,15]
[313936483,1707838283372,-668.71313921,0.00036986,15]
[313936484,1707838283382,-205.12795597,0.00036986,5]
[313936485,1707838283391,-282.13601237,0.00036987,4]
[313936486,1707838283402,-948.11063744,0.00036996,7]
[313936487,1707838283412,-199.07219596,0.00036998,7]
[313936488,1707838283421,-150.0,0.00036999,2]
[313936489,1707838283431,-50000.0,0.00037,7]
[313936490,1707838283442,-4208.72021604,0.00037,14]
[313936491,1707838283451,-312.09039543,0.00037,4]
[313936492,1707838283460,-5009.88,0.00037,20]
[313936493,1707838283469,-2049.17,0.00037,7]
[313936494,1707838283479,-2919.05645549,0.00037,2]
[313936495,1707838283488,-4500.0,0.00037,2]
[313936496,1707838283498,-200000.0,0.00037,5]
[313936497,1707838283507,-2000.0,0.00037,14]
[313936498,1707838283516,-14568.78530956,0.00037,2]
[313936499,1707838283526,-2769.98501384,0.00037,7]
[313936500,1707838283535,-12587.0,0.00037,2]
[313936501,1707838283545,-5087.14906824,0.00037,5]
[313936502,1707838283554,-150.0,0.00037,2]
[313936503,1707838283564,-150.0,0.00037,3]
[313936504,1707838283574,-150.0,0.00037,4]
[313936505,1707838283584,-150.0,0.00037,5]
[313936506,1707838283593,-150.0,0.00037,6]
[313936507,1707838283603,-150.0,0.00037,7]
[313936508,1707838283614,-150.0,0.00037,8]
[313936509,1707838283624,-150.0,0.00037,9]
[313936510,1707838283633,-150.0,0.00037,10]
[313936511,1707838283644,-150.0,0.00037,11]
[313936512,1707838283653,-150.0,0.00037,12]
[313936513,1707838283663,-150.0,0.00037,13]
[313936514,1707838283673,-150.0,0.00037,14]
[313936515,1707838283683,-150.0,0.00037,15]
[313936516,1707838283694,-150.0,0.00037,16]
[313936517,1707838283703,-150.0,0.00037,17]
[313936518,1707838283712,-150.0,0.00037,18]
[313936519,1707838283723,-150.0,0.00037,19]
[313936520,1707838283733,-150.0,0.00037,20]
[313936521,1707838283743,-50000.0,0.00037,4]
[313936522,1707838283752,-63585.54,0.00037,2]
[313936523,1707838283761,-10451.86839647,0.00037,3]
[313936524,1707838283771,-299.999999,0.00037,3]
[313936525,1707838283780,-5000.0,0.00037,15]
[313936526,1707838283790,-650.0,0.00037,3]
[313936527,1707838283799,-151.0,0.00037,7]
[313936528,1707838283808,-151.0,0.00037,7]
[313936529,1707838283818,-151.0,0.00037,5]
[313936530,1707838283827,-324842.02777535,0.00037,30]
[313936531,1707838283838,-269.748076,0.00037,7]
[313936532,1707838283847,-2349.0,0.00037,15]
[313936533,1707838283856,-254.133969,0.00037,7]
[313936534,1707838283867,-568.62,0.00037,3]
[313936535,1707838283876,-568.62,0.00037,3]
[313936536,1707838283885,-568.62,0.00037,3]
[313936537,1707838283895,-568.62,0.00037,3]
[313936538,1707838283905,-568.62,0.00037,3]
[313936539,1707838283914,-568.62,0.00037,3]
[313936540,1707838283924,-568.62,0.00037,3]
[313936541,1707838283934,-568.62,0.00037,3]
[313936542,1707838283944,-568.62,0.00037,3]
[313936543,1707838284083,-568.62,0.00037,3]
[313936544,1707838284095,-568.62,0.00037,3]
[313936545,1707838284105,-568.62,0.00037,3]
[313936546,1707838284115,-568.62,0.00037,3]
[313936547,1707838284125,-568.62,0.00037,3]
[313936548,1707838284135,-568.62,0.00037,3]
[313936549,1707838284145,-568.62,0.00037,3]
[313936550,1707838284155,-568.62,0.00037,3]
[313936551,1707838284165,-568.62,0.00037,3]
[313936552,1707838284175,-568.62,0.00037,3]
[313936553,1707838284185,-568.62,0.00037,3]
[313936554,1707838284196,-151.0,0.00037,7]
[313936555,1707838284205,-151.0,0.00037,7]
[313936556,1707838284215,-151.0,0.00037,7]
[313936557,1707838284225,-151.0,0.00037,7]
[313936558,1707838284235,-157.499232,0.00037,7]
[313936559,1707838284245,-151.0,0.00037,7]
[313936560,1707838284254,-157.499232,0.00037,7]
[313936561,1707838284264,-499.77453941,0.00037005,7]
[313936562,1707838284273,-948.11063744,0.00037005,7]
[313936563,1707838284283,-150.94077731,0.0003703,7]
[313936564,1707838284292,-153.10344138,0.00037034,7]
[313936565,1707838284302,-2000.0,0.00037044,2]
[313936566,1707838284312,-2000.0,0.00037044,2]
[313936567,1707838284322,-156.95415395,0.00037045,7]
[313936568,1707838284332,-948.11063744,0.00037062,7]
[313936569,1707838284348,-267.39767407,0.00037066,7]
[313936570,1707838284358,-159.19558988,0.00037069,7]
[313936571,1707838284367,-4131.38,0.00037075,2]
[313936572,1707838284377,-230.95398111,0.00037083,7]
[313936573,1707838284387,-152.48330725,0.00037086,7]
[313936574,1707838284397,-948.11063744,0.00037093,7]
[313936575,1707838284407,-178.6222009,0.00037096,7]
[313936576,1707838284416,-230.95398111,0.00037096,7]
[313936577,1707838284426,-174.15094667,0.00037106,7]
[313936578,1707838284435,-154.36120313,0.00037112,7]
[313936579,1707838284448,-230.95398111,0.00037129,7]
[313936580,1707838284457,-154.16943477,0.00037129,7]
[313936581,1707838284466,-154.16943477,0.00037135,7]
[313936582,1707838284476,-156.67920931,0.00037144,7]
[313936583,1707838284485,-153.15018631,0.00037153,7]
[313936584,1707838284495,-302.0,0.00037155,4]
[313936585,1707838284504,-154.23863763,0.00037172,7]
[313936586,1707838284514,-267.39767407,0.00037173,7]
[313936587,1707838284523,-205.12795597,0.00037178,5]
[313936588,1707838284532,-166.63863412,0.00037185,7]
[313936589,1707838284541,-70641.0,0.000372,14]
[313936590,1707838284550,-150.0,0.00037203,2]
[313936591,1707838284560,-499.77453941,0.00037242,7]
[313936592,1707838284569,-43122.29150149,0.00037246,2]
[313936593,1707838284578,-159.19558988,0.00037247,7]
[313936594,1707838284588,-154.36120313,0.0003725,7]
[313936595,1707838284597,-154.36120313,0.00037275,7]
[313936596,1707838284606,-169.96008554,0.0003728,7]
[313936597,1707838284615,-10095.10718366,0.00037283,10]
[313936598,1707838284624,-200.0,0.000373,10]
[313936599,1707838284633,-150.0,0.000373,26]
[313936600,1707838284642,-200.0,0.000373,11]
[313936601,1707838284652,-2049.870432,0.000373,5]
[313936602,1707838284661,-154.0808095,0.00037333,7]
[313936603,1707838284670,-499.77453941,0.00037344,7]
[313936604,1707838284679,-948.11063744,0.00037348,7]
[313936605,1707838284691,-154.16943477,0.00037363,7]
[313936606,1707838284700,-400.0,0.0003737,2]
[313936607,1707838284709,-463.23642857,0.00037376,10]
[313936608,1707838284718,-463.23642857,0.00037376,10]
[313936609,1707838284727,-911.29610166,0.00037376,10]
[313936610,1707838284737,-121611.43210261,0.00037376,10]
[313936611,1707838285017,-998.083481,0.00037376,10]
[313936612,1707838285032,-280.237,0.00037376,10]
[313936613,1707838285057,-76394.93638189,0.00037376,10]
[313936614,1707838285066,-203.96839513,0.00037377,10]
[313936615,1707838285075,-527.03882204,0.00037377,10]
[313936616,1707838285084,-536.10467857,0.00037377,10]
[313936617,1707838285093,-911.29610166,0.00037378,10]
[313936618,1707838285102,-6785.55588739,0.00037378,10]
[313936619,1707838285111,-189.69182285,0.00037378,10]
[313936620,1707838285120,-1294.5366411,0.00037379,10]
[313936621,1707838285128,-4602.90235333,0.0003738,5]
[313936622,1707838285138,-674.18801916,0.0003738,10]
[313936623,1707838285146,-1294.5366411,0.00037381,10]
[313936624,1707838285155,-527.03882204,0.00037381,10]
[313936625,1707838285165,-346.28263383,0.00037382,10]
[313936626,1707838285174,-230.95398111,0.00037382,7]
[313936627,1707838285183,-911.29610166,0.00037383,10]
[313936628,1707838285193,-4018.81525623,0.00037384,10]
[313936629,1707838285205,-262.384,0.00037384,10]
[313936630,1707838285216,-979.61532,0.00037384,10]
[313936631,1707838285228,-500.0,0.00037384,10]
[313936632,1707838285259,-500.0,0.00029315,2]
[313936633,1707838285269,-74085.01178274,0.00037384,10]
[313936634,1707838285280,-447.46960951,0.00037384,10]
[313936635,1707838285636,-640.70049248,0.00028298,2]
[313936636,1707838285646,-389.45713017,0.00028298,2]
[313936637,1707838285655,-188.99370364,0.00028298,2]
[313936638,1707838285665,-2655.85999144,0.00028298,2]
[313936639,1707838285675,-261.97827691,0.00028299,2]
[313936640,1707838285685,-168.42240139,0.00028767,2]
[313936641,1707838285703,-317.79033108,0.00028767,2]
[313936642,1707838285719,-32.73314181,0.00028767,2]
[313936643,1707838285729,-500.0,0.00028767,2]
[313936644,1707838285738,-500.0,0.00028767,2]
[313936645,1707838285747,-500.0,0.00028767,2]
[313936646,1707838285756,-500.0,0.00028767,2]
[313936647,1707838285766,-500.0,0.00028767,2]
[313936648,1707838285777,-500.0,0.00029041,2]
[313936649,1707838285786,-500.0,0.00029315,2]
[313936650,1707838285795,-500.0,0.00029315,2]
[313936651,1707838285805,-500.0,0.00029589,2]
[313936652,1707838285814,-530.58,0.00029589,2]
[313936653,1707838285823,-500.0,0.00029589,2]
[313936654,1707838285833,-500.0,0.00029863,2]
[313936655,1707838285842,-562.54,0.00029863,2]
[313936656,1707838285852,-500.0,0.00030136,2]
[313936657,1707838285861,-500.0,0.0003041,2]
[313936658,1707838285870,-500.0,0.00030684,2]
[313936659,1707838285881,-500.0,0.00030958,2]
[313936660,1707838285890,-500.0,0.00031232,2]
[313936661,1707838285900,-415.67,0.00031506,2]
[313936662,1707838285909,-10234.7308828,0.00037384,10]
[313936663,1707838285923,-599.27979208,0.00037384,10]
[313936664,1707838285940,-16468.79961458,0.00037384,10]
[313936665,1707838285953,-48510.99999986,0.00037384,10]
[313936666,1707838285965,-2621.9,0.00037384,10]
[313936667,1707838285976,-854.89304192,0.00037384,10]
[313936668,1707838287103,153.0,0.00028,30]
[313936669,1707838389764,-162.68954405,0.00028067,2]
[313936671,1707838479425,137.31045595,0.00027013,2]
[313936672,1707838479449,219.89954405,0.00027013,2]
[313936686,1707838938842,300.0,0.00026621,2]
[313936687,1707838938868,39.34,0.00026621,2]
[313936693,1707839315511,40.76045595,0.00025,3]
[313936694,1707839315536,300.0,0.00025,3]
[313936748,1707839431675,-9.23954405,0.00025,3]
[313936750,1707839431688,-400.0,0.00027,3]
[313936751,1707839431698,-500.0,0.000274,7]
[313936753,1707839431708,-765.71324655,0.00027483,4]
[313936754,1707839431967,-510.69939046,0.00027483,4]
[313936755,1707839431978,-292.74092664,0.00027483,4]
[313936756,1707839431988,-1645.54,0.00027676,2]
[313936757,1707839431998,-1000.0,0.00027763,2]
[313936758,1707839432008,-911.66495845,0.00028067,2]
[313936760,1707839432031,-499.05471673,0.00028067,2]
[313936762,1707839432044,-528.57058112,0.00028067,2]
[313936765,1707839432056,-328.60558439,0.00028067,2]
[313936767,1707839432065,-152.93041561,0.00028068,2]
[313936770,1707839432087,-63.61157757,0.00028068,2]
[313936771,1707839432097,-154.84750298,0.00028095,2]
[313936772,1707839432109,-560.50166443,0.00028095,3]
[313936773,1707839432118,-528.762,0.00028095,2]
[313936774,1707839432128,-300.0,0.00028096,2]
[313936775,1707839432138,-216.32078387,0.00028097,2]
[313936776,1707839432148,-2328.75332884,0.00028097,2]
[313936777,1707839432159,-6316.00314231,0.00028098,2]
[313936778,1707839432172,-7382.376725,0.00028098,2]
[313936779,1707839432184,-2242.77160239,0.00028098,2]
[313936780,1707839432196,-3289.37979058,0.00028098,2]
[313936781,1707839432206,-170.82,0.0002816,2]
[313936782,1707839432215,-250.51219999,0.00028193,2]
[313936783,1707839432228,-76530.01830001,0.00028193,2]
[313936784,1707839432238,-17612.2529,0.00028195,2]
[313936785,1707839432247,-80595.20848575,0.00028195,2]
[313936786,1707839432299,-269.25804717,0.00028195,2]
[313936787,1707839432315,-500.42,0.00028195,2]
[313936793,1707839437776,-18635.11346708,0.00028195,2]
[313936794,1707839437786,-324.6447,0.00028195,2]
[313936795,1707839437796,-30069.6418329,0.00028195,2]
[313936796,1707839437840,-8943.37347435,0.00028195,2]
[313936797,1707839437853,-1796.47642586,0.00028195,2]
[313936798,1707839437907,-25208.691,0.00028195,2]
[313936802,1707839440426,-3278.71351168,0.00028195,2]
[313936813,1707839442749,-4214.19986303,0.00028195,2]
[313936814,1707839442761,-2574.21903446,0.00028195,2]
[313936815,1707839443070,-2744.38417702,0.00028195,2]
[313936816,1707839443083,-7944.858,0.00028195,2]
[313936822,1707839445721,-599.27979208,0.00028195,2]
[313936823,1707839445794,-1241.36449442,0.00028195,2]
[313936824,1707839445806,-3795.33790666,0.00028195,2]
[313936825,1707839445818,-1312.50000001,0.00028195,2]
[313936826,1707839445830,-4913.0,0.00028195,2]
[313936827,1707839446086,-1400.0,0.00028195,2]
[313936828,1707839470058,132319.90518071,0.00023,2]
[313936829,1707839470081,10000.0,0.00023,2]
[313936830,1707839470108,1321759.3873683,0.00023,2]
[313936831,1707839486575,1534.02063745,0.00018,2]
[313936832,1707839495324,750.0,0.0002,2]
[313936836,1707839647107,6353.48781483,0.0002,2]
[313936848,1707840144331,535.2,0.000283,30]
[313936850,1707840308856,-514.71727457,0.00025148,2]
[313936851,1707840308879,-1346.28272543,0.00025149,2]
[313936852,1707840312595,-986.37002978,0.00025149,2]
[313936853,1707840312618,-162.68954405,0.00025149,2]
[313936854,1707840312639,-787.0,0.00025152,2]
[313936855,1707840312665,-63.94042617,0.00025158,2]
[313936856,1707840313160,-274.40957383,0.00025158,2]
[313936857,1707840313181,-300.0,0.00026709,2]
[313936858,1707840313204,-150.0,0.00026709,2]
[313936859,1707840313226,-1275.59042617,0.0002671,2]
[313936860,1707840313612,-2000.0,0.0002671,2]
[313936861,1707840314239,-2000.0,0.0002671,2]
[313936862,1707840314549,-2000.0,0.0002671,2]
[313936918,1707840590272,5500.0,0.00025,10]
[313936947,1707840631919,-1971.44374651,0.0002671,2]
[313936957,1707840632056,-5438.98650176,0.0002671,2]
[313936959,1707840632065,-468.37806316,0.0002671,2]
[313936960,1707840632076,-800.0,0.00026964,2]
[313936963,1707840632085,-170.82,0.00026968,2]
[313936964,1707840632094,-11361.0,0.00027122,2]
[313936967,1707840632105,-503.15,0.00027125,2]
[313936969,1707840632116,-250.0,0.00027126,2]
[313936971,1707840632126,-200.0,0.00027129,2]
[313936973,1707840632135,-150.0,0.000273,10]
[313936975,1707840632144,-338.35,0.00027422,2]
[313936977,1707840632153,-425.26059938,0.00027483,4]
[313936980,1707840632171,-245.00535246,0.00027483,4]
[313936983,1707840632183,-689.92608079,0.00027483,4]
[313936984,1707840632193,-208.70263944,0.00027483,4]
[313936985,1707840632203,-153.31690684,0.00027483,4]
[313936986,1707840632213,-826.0,0.00027537,2]
[313936987,1707840632223,-499.99,0.00027537,2]
[313936988,1707840632233,-721.94,0.00027666,2]
[313936989,1707840632243,-154.84750298,0.00027895,2]
[313936991,1707840632253,-8810.21192302,0.00027994,2]
[313936992,1707840632271,-17848.04530582,0.00027994,2]
[313937002,1707840637845,-307.14551954,0.00027994,2]
[313937003,1707840637858,-672.95571342,0.00027994,2]
[313937004,1707840637903,-745.55664796,0.00027994,2]
[313937005,1707840637916,-741.27723955,0.00027994,2]
[313937006,1707840637931,-420.8888349,0.00027994,2]
[313937007,1707840637942,-313.89851893,0.00027994,2]
[313937008,1707840637954,-3576.64629686,0.00027994,2]
[313937009,1707840637963,-1000.0,0.00027994,2]
[313937010,1707840637972,-518.71857175,0.00027994,2]
[313937011,1707840637984,-63389.31329639,0.00027994,2]
[313937012,1707840637996,-89910.98906022,0.00027994,2]
[313937013,1707840638023,-1344.11268687,0.00027994,2]
[313937014,1707840638036,-2490.97927769,0.00027994,2]
[313937015,1707840638049,-7372.25454139,0.00027994,2]
[313937016,1707840638061,-1569.99999472,0.00027994,2]
[313937017,1707840638096,-910.7364,0.00027994,2]
[313937018,1707840638109,-998.30893648,0.00027994,2]
[313937019,1707840638123,-1107.28821267,0.00027994,2]
[313937020,1707840638136,-1672.22523981,0.00027994,2]
[313937021,1707840638148,-601.534958,0.00027994,2]
[313937022,1707840638162,-301.7977723,0.00027994,2]
[313937023,1707840638178,-460.30514835,0.00027994,2]
[313937024,1707840638194,-2600.239944,0.00027994,2]
[313937025,1707840638226,-7139.49937052,0.00027994,2]
[313937026,1707840638239,-541.52603415,0.00027994,2]
[313937027,1707840638251,-563.68163121,0.00027994,2]
[313937032,1707840640589,-1087.7210005,0.00027994,2]
[313937033,1707840640650,-1424.0,0.00027994,2]
[313937034,1707840640662,-1139.11643078,0.00027994,2]
[313937035,1707840640673,-301.83235067,0.00027994,2]
[313937036,1707840640785,-1322.46730531,0.00027994,2]
[313937037,1707840641553,-56231.35183622,0.00027994,2]
[313937038,1707840641563,-500.0,0.00027994,2]
[313937039,1707840641573,-524.51616912,0.00027995,3]
[313937040,1707840641582,-8406.95480603,0.00027995,2]
[313937041,1707840641591,-163.80983822,0.00027995,2]
[313937042,1707840641601,-212.3245112,0.00027995,2]
[313937043,1707840641610,-186.33802112,0.00028,2]
[313937044,1707840641619,-18959.9015076,0.0002802,2]
[313937045,1707840641629,-712.78,0.00028046,2]
[313937046,1707840641638,-2232.61975459,0.00028092,2]
[313937047,1707840641649,-481.31860474,0.00028092,2]
[313937048,1707840641658,-162.17167499,0.00028092,2]
[313937049,1707840641668,-1541.56545609,0.00028092,2]
[313937051,1707840641681,-661.14082532,0.00028093,4]
[313937053,1707840641694,-5771.59845604,0.00028093,4]
[313937078,1707840642943,-717.97,0.00027994,2]
[313937080,1707840642954,-1256.0300005,0.00028093,4]
[313937085,1707840643002,-480.95,0.00028093,4]
[313937086,1707840643119,-578.59321859,0.00028093,4]
[313937087,1707840643131,-9953.05528839,0.00028093,4]
[313937088,1707840643140,-554.34631166,0.00028094,2]
[313937089,1707840643152,-1290.53711866,0.00028094,2]
[313937090,1707840643164,-406397.41975258,0.00028094,2]
[313937091,1707840643176,-1227.15657906,0.00028094,2]
[313937092,1707840643244,-17265.71697143,0.00028094,2]
[313937093,1707840643256,-68802.64231064,0.00028094,2]
[313937094,1707840643265,-503.74,0.00028095,2]
[313937095,1707840643275,-8559.5939,0.00028095,3]
[313937096,1707840643285,-100000.0,0.00028095,2]
[313937097,1707840643294,-66784.4498,0.00028095,2]
[313937098,1707840643303,-265.53711459,0.000281,2]
[313937100,1707840643312,-161.27842766,0.00028193,2]
[313937101,1707840643322,-10580.58550241,0.00028193,2]
[313937102,1707840643331,-156.71622305,0.00028193,2]
[313937103,1707840643340,-156.55592593,0.00028193,2]
[313937104,1707840643349,-155.0,0.00028193,2]
[313937105,1707840643359,-290.58226449,0.00028193,2]
[313937106,1707840643368,-1002.50189964,0.00028193,2]
[313937107,1707840643377,-3784.40685525,0.00028193,2]
[313937108,1707840643386,-158.25109863,0.00028194,2]
[313937109,1707840643395,-411.82118166,0.00028196,2]
[313937110,1707840643404,-165.45540104,0.000282,2]
[313937111,1707840643413,-269.72564714,0.000282,14]
[313937112,1707840643422,-212.32451119,0.000282,2]
[313937113,1707840643434,-742.91916082,0.000282,2]
[313937114,1707840643443,-1787.54893144,0.000282,2]
[313937115,1707840643452,-223.75011946,0.000282,2]
[313937116,1707840643461,-500.0,0.00028293,2]
[313937117,1707840643470,-364.34693458,0.00028293,2]
[313937118,1707840643480,-2031.57042199,0.00028293,2]
[313937119,1707840643489,-548.38219036,0.00028293,2]
[313937120,1707840643499,-2319.62034512,0.00028293,2]
[313937121,1707840643507,-1147.15292267,0.00028293,2]
[313937122,1707840643516,-770.52841191,0.00028293,2]
[313937123,1707840643525,-775.39441154,0.00028293,2]
[313937124,1707840643534,-344.78170716,0.00028294,2]
[313937125,1707840643712,-756.92162255,0.00028294,2]
[313937126,1707840643722,-289.93338006,0.00028295,2]
[313937127,1707840643731,-251.57324471,0.00028295,2]
[313937128,1707840643740,-198.60905178,0.00028295,2]
[313937129,1707840643749,-20939.221459,0.00028295,2]
[313937147,1707840703374,12455.639976,0.00028,30]
[313937148,1707840861394,188.28,0.00026993,120]
[313937149,1707840977591,2530.19705251,0.00020245,2]
[313937150,1707841041433,468.37806316,0.00020245,2]
[313937151,1707841057425,468.37806316,0.00020245,2]
[313937152,1707841073433,288.58256665,0.00020245,2]
[313937153,1707841265126,6863.0,0.0002246,2]
[313937154,1707841408763,173.95,0.00020582,2]
[313937155,1707841511486,150.0,0.00022455,2]
[313937156,1707841512781,150.0,0.00023003,2]
[313937157,1707841565098,5526.51536936,0.0002246,2]
[313937158,1707841589443,153.0,0.00025,10]
[313937159,1707841698033,-10556.09033301,0.00023232,2]
[313937186,1707841832044,-514.71727457,0.00023122,2]
[313937188,1707841832054,-5547.22996271,0.00023122,2]
[313937190,1707841832063,-1047.40942975,0.00023123,2]
[313937192,1707841832073,-626.44937518,0.00023123,2]
[313937194,1707841832083,-300.0,0.00023124,2]
[313937196,1707841832092,-150.0,0.00023124,2]
[313937198,1707841832102,-150.0,0.00023124,2]
[313937200,1707841832111,-33533.40049556,0.00023124,2]
[313937202,1707841832120,-563.66965656,0.00023125,2]
[313937204,1707841832130,-2029.03801024,0.00023125,2]
[313937205,1707841832139,-155.0,0.00023125,2]
[313937207,1707841832149,-3347.99076956,0.00023125,2]
[313937209,1707841832159,-1862.52080819,0.00023126,2]
[313937211,1707841832172,-160.75846972,0.00023129,2]
[313937213,1707841832182,-224.04406869,0.00023237,2]
[313937215,1707841832193,-483.22,0.00023555,2]
[313937217,1707841832202,-160.75846967,0.00023692,2]
[313937218,1707841832211,-160.75846967,0.00024256,2]
[313937220,1707841832220,-160.75846967,0.00024819,2]
[313937222,1707841832229,-350.0,0.00025,3]
[313937223,1707841832238,-194.23444843,0.00025102,2]
[313937224,1707841832248,-1005.74030105,0.00025102,2]
[313937225,1707841832257,-296.11088142,0.00025102,2]
[313937226,1707841832266,-2000.0,0.00025375,2]
[313937227,1707841832275,-160.75846967,0.00025383,2]
[313937228,1707841832284,-1041.53,0.0002543,2]
[313937229,1707841832294,-10000.0,0.00025434,2]
[313937230,1707841832303,-924.23,0.00025459,2]
[313937231,1707841832314,-166.02,0.00025495,2]
[313937232,1707841832325,-360.0,0.00025499,2]
[313937233,1707841832335,-200.0,0.00025502,2]
[313937234,1707841832344,-200.0,0.00025515,2]
[313937235,1707841832353,-1033.21,0.00025531,2]
[313937236,1707841832363,-23900.0,0.00025531,2]
[313937237,1707841832373,-200.0,0.0002555,2]
[313937238,1707841832383,-500.0,0.00025563,2]
[313937239,1707841832392,-250.0,0.00025609,2]
[313937240,1707841832402,-200.0,0.0002561,2]
[313937241,1707841832415,-242.71,0.00025621,2]
[313937242,1707841832424,-1817.96,0.00025628,2]
[313937243,1707841832433,-165.79,0.00025628,2]
[313937244,1707841832443,-1180.39,0.00025683,2]
[313937245,1707841832454,-279.85,0.00025684,2]
[313937246,1707841832463,-811.11,0.00025689,2]
[313937247,1707841832473,-250.0,0.00025727,2]
[313937248,1707841832482,-170.98,0.00025742,2]
[313937249,1707841832491,-500.0,0.00025747,2]
[313937250,1707841832501,-483.22,0.00025819,2]
[313937251,1707841832510,-174.8,0.00025837,2]
[313937252,1707841832519,-150.0,0.00025846,2]
[313937253,1707841832529,-160.75846967,0.00025946,2]
[313937254,1707841832538,-159.54,0.00026058,2]
[313937255,1707841832547,-250.0,0.00026087,2]
[313937256,1707841832558,-499.99,0.00026179,2]
[313937257,1707841832567,-159.54,0.00026252,2]
[313937258,1707841832577,-1169.53,0.0002633,2]
[313937259,1707841832596,-640.0,0.00026363,2]
[313937260,1707841832607,-164.34,0.00026432,2]
[313937261,1707841832617,-159.54,0.00026446,2]
[313937262,1707841832627,-3126.62522492,0.00026496,2]
[313937263,1707841832636,-155.61554594,0.00026496,2]
[313937264,1707841832646,-160.75846967,0.0002651,2]
[313937265,1707841832655,-159.54,0.0002664,2]
[313937266,1707841832667,-159.54,0.00026834,2]
[313937267,1707841832676,-298.57,0.00026876,2]
[313937268,1707841832686,-2335.5501,0.000269,2]
[313937269,1707841832696,-720.19,0.00026915,2]
[313937270,1707841832706,-400.0,0.00027,3]
[313937271,1707841832717,-159.54,0.00027028,2]
[313937272,1707841832727,-2478.53279229,0.00027054,2]
[313937273,1707841832737,-732.24,0.00027068,2]
[313937274,1707841832748,-160.75846967,0.00027073,2]
[313937275,1707841832757,-924.23,0.00027102,2]
[313937276,1707841832766,-159.54,0.00027222,2]
[313937277,1707841832777,-717.8,0.00027237,2]
[313937278,1707841832787,-177.27,0.000273,2]
[313937279,1707841832796,-500.0,0.000273,2]
[313937281,1707841832806,-982.18065962,0.00027397,6]
[313937283,1707841832814,-756.22,0.00027397,10]
[313937285,1707841832824,-500.0,0.000274,7]
[313937287,1707841832834,-159.54,0.00027416,2]
[313937290,1707841832843,-730.12,0.00027473,2]
[313937292,1707841832854,-166.69603611,0.00027483,4]
[313937293,1707841832863,-291.36679533,0.00027483,4]
[313937296,1707841832873,-282.67788697,0.00027513,2]
[313937298,1707841832882,-242.51325085,0.00027612,2]
[313937300,1707841832891,-160.75846967,0.00027637,2]
[313937302,1707841832902,-790.0,0.00027637,2]
[313937303,1707841832915,-2546.7209,0.00027693,2]
[313937305,1707841832925,-1130.3096,0.00027693,2]
[313937307,1707841832935,-7566.2593254,0.00027693,2]
[313937309,1707841832945,-352.65313079,0.00027789,2]
[313937311,1707841832955,-302.6087346,0.0002779,2]
[313937313,1707841832966,-155.0,0.00027791,2]
[313937315,1707841832975,-2172.02049414,0.00027791,2]
[313937317,1707841832984,-2661.91041264,0.00027791,2]
[313937319,1707841832993,-526.74284305,0.00027791,2]
[313937321,1707841833003,-1956.89178955,0.00027791,2]
[313937324,1707841833013,-155.0,0.00027791,2]
[313937326,1707841833023,-62978.60789265,0.00027791,2]
[313937328,1707841833033,-817.43473583,0.00027793,2]
[313937330,1707841833042,-19629.67059857,0.00027793,2]
[313937332,1707841833057,-19834.20360143,0.00027793,2]
[313937334,1707841833066,-1000.0,0.00027793,2]